bitfinex/quotes_SOLUSD_20250719
["timestamp","ask_amount","ask_price","bid_price","bid_amount"]
[1752925146074,8.99796681,177.32,177.31,143.04468397]
[1752925146273,0.26,177.35,177.31,143.04468397]
[1752925146489,3.09844505,177.32,177.31,143.04468397]
[1752925147669,3.35844505,177.32,177.31,143.04468397]
[1752925148582,0.26,177.32,177.31,143.04468397]
[1752925148796,3.09844505,177.32,177.31,143.04468397]
[1752925150502,3.09844505,177.32,177.31,176.91468397]
[1752925153205,3.09844505,177.32,177.31,176.94468397]
[1752925154679,3.09844505,177.32,177.31,137.00468397]
[1752925155002,3.09844505,177.32,177.31,176.92468397]
[1752925155884,3.09844505,177.32,177.31,137.72468397]
[1752925156107,3.09844505,177.32,177.31,177.64468397]
[1752925156411,3.09844505,177.32,177.31,176.92468397]
[1752925157719,8.73796681,177.32,177.31,176.92468397]
[1752925157922,8.99796681,177.32,177.31,0.03]
[1752925158134,8.99796681,177.32,177.31,39.95]
[1752925159154,8.99796681,177.32,177.31,0.03]
[1752925160328,8.73796681,177.32,177.31,33.9]
[1752925161513,8.99796681,177.32,177.31,33.9]
[1752925162811,8.73796681,177.32,177.31,33.9]
[1752925164424,8.99796681,177.32,177.31,33.9]
[1752925165433,8.99796681,177.32,177.31,0.03]
[1752925167348,8.73796681,177.32,177.31,0.03]
[1752925167530,0.1,177.37,177.31,0.03]
[1752925167531,5.63920374,177.33,177.31,0.74]
[1752925167734,3.09844505,177.32,177.31,0.03]
[1752925169024,3.09844505,177.32,177.31,86.35]
[1752925169534,8.73796681,177.32,177.31,86.35]
[1752925172757,5.63952176,177.32,177.31,86.35]
[1752925172952,3.09844505,177.32,177.31,87.06]
[1752925173739,5.63824988,177.36,177.32,50.65468397]
[1752925173938,5.63824988,177.36,177.33,40.61]
[1752925173939,8.73669493,177.36,177.33,40.61]
[1752925174138,3.09844505,177.35,177.33,40.61]
[1752925174455,3.09844505,177.35,177.34,0.71]
[1752925174846,3.15844505,177.35,177.34,0.71]
[1752925175552,8.79701285,177.35,177.34,33.87]
[1752925175737,9.05701285,177.35,177.33,39.9]
[1752925175943,3.09844505,177.34,177.32,39.9]
[1752925176141,3.09844505,177.33,177.32,39.9]
[1752925178159,8.73764879,177.33,177.32,126.22]
[1752925179761,8.73764879,177.33,177.32,86.32]
[1752925180561,8.99764879,177.33,177.31,0.03]
[1752925180762,3.35844505,177.32,177.31,0.03]
[1752925182058,8.99796681,177.32,177.31,0.03]
[1752925182256,8.73796681,177.32,177.31,0.03]
[1752925182444,8.73796681,177.32,177.27,0.03]
[1752925182445,26.19521628,177.32,177.27,0.03]
[1752925182645,3.09844505,177.28,177.27,0.03]
[1752925184232,8.73923927,177.28,177.27,0.74]
[1752925184635,8.73923927,177.28,177.27,0.03]
[1752925188072,3.09844505,177.28,177.27,0.74]
[1752925188250,26.0,177.34,177.27,40.62]
[1752925188562,3.09844505,177.29,177.27,126.23]
[1752925188867,3.09844505,177.28,177.27,126.23]
[1752925189355,3.09844505,177.28,177.27,86.35]
[1752925190671,8.73923927,177.28,177.27,86.35]
[1752925193004,8.73923927,177.28,177.27,0.03]
[1752925194788,8.73923927,177.28,177.27,0.74]
[1752925197096,8.73894926,177.29,177.27,0.74]
[1752925197968,8.73894926,177.29,177.27,0.03]
[1752925198164,3.09844505,177.28,177.27,0.69]
[1752925198594,3.09844505,177.28,177.27,0.03]
[1752925198790,3.09844505,177.28,177.27,86.35]
[1752925199191,8.73923927,177.28,177.27,86.35]
[1752925199392,8.73923927,177.28,177.27,126.23]
[1752925199596,3.09844505,177.28,177.27,126.23]
[1752925199899,8.73923927,177.28,177.27,126.23]
[1752925202299,8.73923927,177.28,177.27,126.89]
[1752925202496,3.09844505,177.28,177.27,126.89]
[1752925202685,3.09844505,177.28,177.27,126.87]
[1752925204810,8.73923927,177.28,177.27,126.87]
[1752925205197,3.09844505,177.28,177.27,126.87]
[1752925205498,3.09844505,177.28,177.27,160.08]
[1752925205807,8.73923927,177.28,177.27,160.08]
[1752925205977,3.09844505,177.28,177.27,160.08]
[1752925206183,3.09844505,177.28,177.27,160.74]
[1752925208509,8.73923927,177.28,177.27,160.08]
[1752925208800,8.73923927,177.28,177.27,120.22]
[1752925209009,8.99923927,177.28,177.27,86.35]
[1752925210303,8.99923927,177.28,177.27,0.03]
[1752925213214,8.73923927,177.28,177.27,0.03]
[1752925213383,8.73923927,177.28,177.27,0.69]
[1752925213583,8.73923927,177.28,177.27,0.03]
[1752925229713,8.99923927,177.28,177.27,0.03]
[1752925231614,8.99923927,177.28,177.23,0.03]
[1752925231615,20.00277977,177.28,177.23,0.03]
[1752925231818,3.09844505,177.24,177.23,0.03]
[1752925232322,19.74277977,177.28,177.23,0.73]
[1752925232518,3.09844505,177.25,177.23,0.73]
[1752925232831,3.09844505,177.24,177.23,0.73]
[1752925233508,8.7405123,177.24,177.23,0.73]
[1752925238222,8.7405123,177.24,177.23,0.03]
[1752925239510,8.7405123,177.24,177.23,0.73]
[1752925240609,8.7405123,177.24,177.23,0.03]
[1752925241219,8.7405123,177.24,177.23,0.73]
[1752925244936,7.62185591,177.24,177.23,0.73]
[1752925245911,5.64111242,177.27,177.23,40.53]
[1752925246112,1.97978866,177.26,177.24,0.7]
[1752925246307,7.68068359,177.28,177.24,0.7]
[1752925246613,7.68068359,177.28,177.24,87.02]
[1752925246833,7.68068359,177.28,177.24,86.32]
[1752925247012,1.97978866,177.27,177.25,0.7]
[1752925248436,5.70089493,177.28,177.25,0.7]
[1752925248641,0.06,177.28,177.26,39.8]
[1752925249018,0.06,177.28,177.27,0.7]
[1752925250826,0.06,177.28,177.27,87.02]
[1752925252433,0.06,177.28,177.27,106.89605618]
[1752925252609,0.06,177.28,177.27,140.73605618]
[1752925252808,0.06,177.28,177.27,137.64468397]
[1752925253430,0.06,177.28,177.27,177.42468397]
[1752925255644,0.06,177.28,177.27,137.64468397]
[1752925255829,0.06,177.28,177.27,177.42468397]
[1752925256530,0.06,177.28,177.27,180.51605618]
[1752925261313,0.06,177.31,177.3,59.84]
[1752925261518,0.06,177.31,177.3,188.95137221]
[1752925261758,0.06,177.31,177.3,359.74182839]
[1752925262315,0.06,177.31,177.3,356.65045618]
[1752925262521,0.06,177.31,177.3,359.74182839]
[1752925262737,0.06,177.31,177.3,211.04182839]
[1752925263935,0.06,177.31,177.3,207.95045618]
[1752925264935,0.06,177.31,177.3,172.58545629]
[1752925265137,0.06,177.31,177.3,212.34545629]
[1752925265648,0.06,177.31,177.3,229.25545629]
[1752925265836,0.06,177.31,177.3,212.34545629]
[1752925266638,0.06,177.31,177.3,215.4368285]
[1752925268150,0.06,177.31,177.3,212.34545629]
[1752925269133,0.06,177.31,177.3,215.4368285]
[1752925271797,0.06,177.31,177.3,234.59742356]
[1752925272640,0.1,177.37,177.34,59.84]
[1752925272957,0.1,177.37,177.34,189.37526078]
[1752925273148,0.1,177.37,177.34,189.51137221]
[1752925277056,0.1,177.37,177.34,162.76468397]
[1752925277253,0.1,177.37,177.34,202.48468397]
[1752925277448,8.82938128,177.37,177.34,202.48468397]
[1752925277655,0.26,177.36,177.34,202.48468397]
[1752925278456,8.82938128,177.37,177.34,202.48468397]
[1752925279063,5.73800907,177.37,177.34,203.18468397]
[1752925279244,0.1,177.37,177.34,206.27605618]
[1752925281958,5.73797564,177.37,177.34,202.48468397]
[1752925282258,0.26,177.36,177.34,202.48468397]
[1752925283742,5.89826588,177.36,177.34,202.48468397]
[1752925284765,5.63826588,177.36,177.34,202.48468397]
[1752925285258,8.82934188,177.37,177.34,202.48468397]
[1752925285455,8.82934188,177.37,177.34,203.18468397]
[1752925286463,5.73796967,177.37,177.34,203.18468397]
[1752925286791,5.73796967,177.37,177.34,202.48468397]
[1752925287360,8.82934188,177.37,177.34,99.56]
[1752925287570,3.35137221,177.36,177.34,99.56]
[1752925288868,8.98992995,177.36,177.34,99.56]
[1752925290364,5.63855774,177.36,177.34,99.56]
[1752925290663,5.63855774,177.36,177.34,100.28]
[1752925291043,5.73797268,177.37,177.34,117.06468397]
[1752925291247,0.1,177.37,177.34,120.15605618]
[1752925292149,5.73802994,177.37,177.34,117.06468397]
[1752925293271,5.73802994,177.37,177.34,203.20468397]
[1752925294045,3.15137221,177.35,177.34,159.7]
[1752925294283,0.06,177.35,177.34,159.7]
[1752925296274,0.06,177.35,177.34,119.98]
[1752925297458,9.04994001,177.35,177.34,86.14]
[1752925297959,9.04994001,177.35,177.32,0.03]
[1752925298149,3.09137221,177.33,177.32,0.03]
[1752925298679,3.35137221,177.33,177.32,0.03]
[1752925299467,8.99057595,177.33,177.32,0.03]
[1752925304380,8.99057595,177.33,177.32,1e-08]
[1752925306660,48.67057595,177.33,177.32,1e-08]
[1752925306864,1.5605,177.32,177.28,0.03]
[1752925307065,3.09137221,177.29,177.28,0.03]
[1752925307582,3.35137221,177.29,177.28,0.03]
[1752925308387,8.99184826,177.29,177.28,0.03]
[1752925310488,8.73184826,177.29,177.28,0.03]
[1752925312489,8.99184826,177.29,177.28,0.03]
[1752925313973,5.90047605,177.29,177.28,0.03]
[1752925314176,5.64047605,177.29,177.28,0.03]
[1752925314378,8.73184826,177.29,177.28,0.03]
[1752925314576,8.73184826,177.29,177.28,0.75]
[1752925314776,8.73089397,177.32,177.28,0.75]
[1752925314992,8.73089397,177.32,177.28,3.84137221]
[1752925315196,5.63952176,177.32,177.29,3.81137221]
[1752925315385,5.63952176,177.32,177.28,89.26137221]
[1752925315577,5.63952176,177.32,177.3,0.72]
[1752925317598,8.73089397,177.32,177.3,0.72]
[1752925318573,8.73089397,177.32,177.31,0.72]
[1752925318773,5.63952176,177.32,177.31,0.72]
[1752925318974,8.73065361,177.33,177.31,0.72]
[1752925319197,3.09137221,177.33,177.31,0.72]
[1752925319570,8.73037466,177.34,177.31,0.72]
[1752925319770,5.69865426,177.35,177.31,40.4]
[1752925319982,5.69865426,177.35,177.32,0.72]
[1752925320294,5.69865426,177.35,177.32,86.86]
[1752925320507,5.69865426,177.35,177.33,0.72]
[1752925321180,8.79002647,177.35,177.34,0.72]
[1752925322397,8.79002647,177.35,177.33,0.72]
[1752925322605,3.09137221,177.34,177.32,86.14]
[1752925322897,3.09137221,177.33,177.32,86.14]
[1752925323091,3.09137221,177.34,177.32,86.86]
[1752925324904,8.73044938,177.34,177.32,86.86]
[1752925325103,8.73044938,177.34,177.33,0.72]
[1752925325283,8.73044938,177.34,177.32,86.86]
[1752925325981,8.73044938,177.34,177.33,0.72]
[1752925327690,8.73044938,177.34,177.32,0.03]
[1752925327985,3.09137221,177.33,177.32,0.03]
[1752925328881,8.73057595,177.33,177.32,0.03]
[1752925330106,5.63920374,177.33,177.32,0.75]
[1752925330293,8.73057595,177.33,177.32,0.75]
[1752925330494,8.73057595,177.33,177.32,0.03]
[1752925331211,8.73057595,177.33,177.32,0.75]
[1752925331697,8.73057595,177.33,177.32,0.03]
[1752925333387,8.99057595,177.33,177.32,0.03]
[1752925333788,8.73057595,177.33,177.32,0.03]
[1752925334787,8.99057595,177.33,177.32,0.03]
[1752925340018,8.73057595,177.33,177.32,0.03]
[1752925340713,8.99057595,177.33,177.32,0.03]
[1752925342087,8.73057595,177.33,177.32,0.03]
[1752925344521,8.99057595,177.33,177.32,0.03]
[1752925345526,8.73057595,177.33,177.32,0.03]
[1752925346700,8.99057595,177.33,177.32,0.03]
[1752925348436,48.61057595,177.33,177.32,0.03]
[1752925350605,3.09137221,177.29,177.28,0.71]
[1752925351003,3.09137221,177.29,177.28,0.03]
[1752925351402,8.73184826,177.29,177.28,0.03]
[1752925354314,8.73184826,177.29,177.28,0.71]
[1752925356321,8.73184826,177.29,177.28,0.03]
[1752925360216,8.73184826,177.29,177.28,0.71]
[1752925362446,8.73184826,177.29,177.28,0.03]
[1752925370051,8.73184826,177.29,177.28,0.71]
[1752925370431,0.06,177.32,177.28,0.71]
[1752925370741,8.73121203,177.31,177.28,0.71]
[1752925370941,1.97858912,177.29,177.28,0.71]
[1752925371128,7.61906517,177.29,177.28,0.03]
[1752925371742,7.61906517,177.29,177.28,0.71]
[1752925372954,3.0921652,177.29,177.28,0.71]
[1752925374661,19.79832618,177.32,177.28,0.71]
[1752925374830,3.0921652,177.29,177.28,0.71]
[1752925375030,8.73264125,177.29,177.28,0.71]
[1752925380830,5.64047605,177.29,177.28,0.71]
[1752925381737,8.73264125,177.29,177.28,0.71]
[1752925383166,3.0921652,177.29,177.28,0.71]
[1752925383842,8.73240186,177.3,177.28,0.71]
[1752925384259,3.0921652,177.29,177.28,0.71]
[1752925385963,8.73264125,177.29,177.28,0.71]
[1752925386360,8.73264125,177.29,177.28,0.03]
[1752925391157,8.99264125,177.29,177.28,0.03]
[1752925393276,8.73264125,177.29,177.28,0.03]
[1752925394977,7.61996666,177.29,177.28,0.03]
[1752925398888,7.87996666,177.29,177.28,0.03]
[1752925399273,47.43996666,177.29,177.28,0.03]
[1752925400592,47.17996666,177.29,177.28,0.03]
[1752925401283,47.17996666,177.29,177.24,0.03]
[1752925401284,89.74353708,177.29,177.24,0.03]
[1752925401491,1.97949061,177.25,177.24,0.03]
[1752925402387,2.23949061,177.25,177.23,0.03]
[1752925402568,28.23949061,177.24,177.23,1e-08]
[1752925403190,33.88155786,177.24,177.23,1e-08]
[1752925403406,41.7995203,177.24,177.23,1e-08]
[1752925403706,1.97949061,177.21,177.2,0.03]
[1752925403898,49.45745305,177.21,177.2,0.03]
[1752925404999,45.75219988,177.21,177.2,0.03]
[1752925405183,51.65522228,177.21,177.2,0.03]
[1752925405595,51.65522228,177.21,177.19,0.03]
[1752925405915,3.09609994,177.2,177.19,0.03]
[1752925406099,3.35609994,177.2,177.19,0.03]
[1752925406605,3.35609994,177.2,177.15,0.73]
[1752925406783,3.09609994,177.16,177.15,0.73]
[1752925408010,8.74071497,177.16,177.15,0.73]
[1752925410701,48.30071497,177.16,177.15,0.03]
[1752925411509,48.56071497,177.16,177.15,0.03]
[1752925411677,3.09609994,177.15,177.14,0.2]
[1752925411885,3.35609994,177.15,177.14,0.2]
[1752925412085,3.09609994,177.15,177.14,0.2]
[1752925412302,8.74103361,177.15,177.14,0.2]
[1752925414499,9.00103361,177.15,177.14,1e-08]
[1752925414990,3.09609994,177.14,177.13,1e-08]
[1752925415194,42.91609994,177.14,177.13,1e-08]
[1752925416293,51.65745222,177.14,177.13,1e-08]
[1752925417312,26.0,177.12,177.09,0.03]
[1752925417518,3.09609994,177.1,177.09,0.03]
[1752925418236,8.74262732,177.1,177.09,0.03]
[1752925420639,8.74262732,177.1,177.09,0.73]
[1752925421441,5.64652738,177.1,177.09,0.73]
[1752925421912,8.74262732,177.1,177.09,0.73]
[1752925422946,5.64620857,177.11,177.09,0.73]
[1752925423238,3.09609994,177.1,177.09,0.73]
[1752925425142,8.74262732,177.1,177.09,0.73]
[1752925426934,8.74262732,177.1,177.09,0.03]
[1752925427423,8.74262732,177.1,177.09,0.73]
[1752925434233,8.7423883,177.11,177.09,0.73]
[1752925434447,5.64628836,177.11,177.09,0.73]
[1752925434636,3.09609994,177.1,177.09,0.73]
[1752925435035,8.74262732,177.1,177.09,0.73]
[1752925437523,8.74262732,177.1,177.09,0.03]
[1752925437950,8.74262732,177.1,177.09,0.73]
[1752925439248,8.74262732,177.1,177.09,0.03]
[1752925440338,9.00262732,177.1,177.09,0.03]
[1752925440757,8.74262732,177.1,177.09,0.03]
[1752925441465,8.74262732,177.1,177.09,0.73]
[1752925441836,5.64652738,177.1,177.09,0.73]
[1752925442557,8.74198973,177.12,177.09,0.73]
[1752925442859,0.06,177.16,177.12,1.5445]
[1752925443078,0.06,177.16,177.13,3.79609994]
[1752925443359,0.06,177.16,177.14,3.09609994]
[1752925443547,0.06,177.16,177.12,4.64059994]
[1752925443750,0.06,177.16,177.14,0.7]
[1752925444755,0.06,177.16,177.14,3.79609994]
[1752925445260,0.06,177.16,177.15,0.7]
[1752925445459,0.06,177.16,177.15,3.79609994]
[1752925445633,0.06,177.16,177.15,0.7]
[1752925446669,5.64493367,177.15,177.13,7.0736]
[1752925446853,8.74103361,177.15,177.14,0.7]
[1752925449261,8.74103361,177.15,177.12,0.7]
[1752925449446,3.09609994,177.13,177.12,0.7]
[1752925449759,3.09609994,177.13,177.1,39.56]
[1752925450142,5.64493367,177.15,177.1,39.56]
[1752925450341,3.09609994,177.14,177.11,0.7]
[1752925451359,5.64548236,177.14,177.11,3.79609994]
[1752925451556,5.64548236,177.14,177.12,0.7]
[1752925452569,5.64493367,177.15,177.12,0.7]
[1752925453362,5.64493367,177.15,177.12,3.79609994]
[1752925453567,5.64493367,177.15,177.13,3.09609994]
[1752925453765,5.64493367,177.15,177.13,42.65609994]
[1752925453953,0.06,177.16,177.14,3.79609994]
[1752925454156,0.06,177.16,177.15,3.09609994]
[1752925454466,0.06,177.16,177.15,3.79609994]
[1752925455467,0.06,177.16,177.15,37.63609994]
[1752925458965,0.06,177.16,177.15,125.23609994]
[1752925459273,0.06,177.16,177.15,142.02078391]
[1752925459765,0.06,177.16,177.15,161.68]
[1752925460138,0.06,177.16,177.15,164.77609994]
[1752925460341,0.06,177.16,177.15,130.93609994]
[1752925463578,0.06,177.16,177.15,147.72078391]
[1752925464964,0.06,177.16,177.15,91.39609994]
[1752925465188,0.06,177.16,177.15,130.93609994]
[1752925466785,0.06,177.16,177.15,127.84]
[1752925467024,0.06,177.16,177.15,130.93609994]
[1752925469586,0.06,177.16,177.15,181.56078391]
[1752925469884,0.06,177.16,177.15,178.46468397]
[1752925470095,0.06,177.16,177.15,181.56078391]
[1752925471473,0.06,177.16,177.15,161.68]
[1752925473379,0.06,177.16,177.15,164.77609994]
[1752925473573,0.06,177.16,177.15,181.56078391]
[1752925479302,0.06,177.16,177.15,183.19908391]
[1752925479513,0.06,177.16,177.15,209.19908391]
[1752925483513,0.06,177.16,177.15,206.10298397]
[1752925483697,0.06,177.16,177.15,209.19908391]
[1752925485602,0.06,177.16,177.15,206.10298397]
[1752925485782,0.06,177.16,177.15,209.19908391]
[1752925489413,0.06,177.16,177.15,209.17908391]
[1752925490885,0.06,177.16,177.15,206.08298397]
[1752925491090,0.06,177.16,177.15,209.17908391]
[1752925493915,0.06,177.16,177.15,204.44468397]
[1752925494115,0.06,177.16,177.15,207.54078391]
[1752925500534,0.06,177.16,177.15,148.14]
[1752925500718,3.15609994,177.16,177.13,0.71]
[1752925500922,3.09609994,177.14,177.12,87.6]
[1752925501121,3.35609994,177.13,177.09,88.34]
[1752925501318,3.35609994,177.12,177.09,39.55]
[1752925501531,0.26,177.11,177.09,39.55]
[1752925501720,5.9064472,177.11,177.09,39.55]
[1752925502236,3.09609994,177.13,177.09,40.26]
[1752925502423,8.7417901,177.13,177.1,0.71]
[1752925502622,5.64535461,177.14,177.11,43.32609994]
[1752925502816,5.64535461,177.14,177.12,0.71]
[1752925504333,5.64493367,177.15,177.12,0.71]
[1752925504736,0.06,177.16,177.13,0.71]
[1752925504920,0.06,177.16,177.14,3.09609994]
[1752925505116,0.06,177.16,177.15,43.32609994]
[1752925505637,0.06,177.16,177.15,39.52]
[1752925510748,0.06,177.16,177.15,73.36]
[1752925511933,0.06,177.16,177.15,74.07]
[1752925513630,0.06,177.16,177.15,77.16609994]
[1752925513830,0.06,177.16,177.15,73.36]
[1752925517152,0.06,177.16,177.14,87.6]
[1752925517450,3.09609994,177.15,177.14,87.6]
[1752925520559,8.74103361,177.15,177.14,87.6]
[1752925520940,5.7047366,177.16,177.14,88.31]
[1752925521154,0.06,177.16,177.15,0.71]
[1752925531169,0.06,177.16,177.15,34.55]
[1752925531464,3.15609994,177.16,177.14,127.12]
[1752925532046,3.15609994,177.16,177.14,127.1]
[1752925532459,0.06,177.16,177.14,127.82]
[1752925532968,0.06,177.16,177.15,0.72]
[1752925539090,0.06,177.16,177.14,40.22]
[1752925539750,7.68596808,177.16,177.14,40.22]
[1752925540174,7.68596808,177.16,177.14,39.5]
[1752925540369,7.68596808,177.16,177.15,0.72]
[1752925541270,7.68596808,177.16,177.15,34.56]
[1752925541462,7.68596808,177.16,177.14,39.5]
[1752925541653,7.68596808,177.16,177.15,0.72]
[1752925542281,7.68596808,177.16,177.14,39.5]
[1752925542970,7.68596808,177.16,177.14,40.22]
[1752925543452,1.98128894,177.15,177.14,39.5]
[1752925543656,1.98128894,177.15,177.13,87.6]
[1752925543950,1.98128894,177.14,177.13,87.6]
[1752925544649,1.98128894,177.14,177.12,161.68]
[1752925545166,1.98128894,177.14,177.12,160.96]
[1752925545475,1.98128894,177.15,177.13,0.72]
[1752925545663,0.06,177.16,177.14,39.5]
[1752925545861,0.06,177.16,177.15,0.72]
[1752925547483,2.04128894,177.16,177.15,0.72]
[1752925547854,2.04128894,177.16,177.14,39.5]
[1752925548055,1.98128894,177.15,177.14,40.22]
[1752925548597,7.62622261,177.15,177.14,39.5]
[1752925548758,7.62622261,177.15,177.13,40.22]
[1752925551081,3.09646211,177.15,177.13,40.22]
[1752925552182,8.74147399,177.15,177.13,40.22]
[1752925554201,8.74147399,177.15,177.13,0.72]
[1752925554365,8.74147399,177.15,177.13,40.2]
[1752925554682,8.74147399,177.15,177.14,0.72]
[1752925554883,5.64501188,177.15,177.14,0.72]
[1752925557671,8.74147399,177.15,177.14,0.72]
[1752925560083,3.09646211,177.15,177.14,0.72]
[1752925560586,8.80119683,177.16,177.14,0.72]
[1752925561469,8.80119683,177.16,177.13,39.48]
[1752925561678,0.06,177.16,177.15,0.68]
[1752925561880,3.15646211,177.16,177.14,0.68]
[1752925562068,3.09646211,177.15,177.14,0.68]
[1752925562687,8.74139578,177.15,177.12,127.08]
[1752925562874,3.09646211,177.14,177.12,127.08]
[1752925563075,3.09646211,177.14,177.12,88.28]
[1752925563282,5.64493367,177.15,177.12,127.08]
[1752925563480,3.09646211,177.14,177.13,0.68]
[1752925563685,3.09646211,177.14,177.12,127.08]
[1752925564391,3.09646211,177.14,177.12,127.76]
[1752925565177,3.09646211,177.14,177.13,0.68]
[1752925566494,5.64493367,177.15,177.13,0.68]
[1752925566871,8.74139578,177.15,177.13,0.68]
[1752925568490,3.09646211,177.14,177.13,0.68]
[1752925569897,8.74139578,177.15,177.13,0.68]
[1752925570097,0.06,177.16,177.14,39.48]
[1752925570406,0.06,177.16,177.15,0.68]
[1752925571586,0.06,177.16,177.15,34.54]
[1752925580601,0.06,177.16,177.15,36.52102]
[1752925582086,0.06,177.16,177.15,34.54]
[1752925582288,0.06,177.16,177.15,36.52102]
[1752925582597,0.06,177.16,177.15,53.30570397]
[1752925582793,0.06,177.16,177.15,51.32468397]
[1752925583101,0.06,177.16,177.15,90.78468397]
[1752925583409,2.04102,177.16,177.15,73.32]
[1752925584709,0.06,177.16,177.15,74.0]
[1752925585214,7.68563503,177.16,177.15,40.14]
[1752925585396,7.68563503,177.16,177.14,87.6]
[1752925585599,7.68563503,177.16,177.14,127.06]
[1752925585811,5.70461503,177.16,177.14,127.06]
[1752925586009,7.68563503,177.16,177.14,127.77]
[1752925586582,1.98102,177.15,177.14,87.6]
[1752925586782,2.24102,177.15,177.14,87.6]
[1752925587503,2.24102,177.15,177.12,39.46]
[1752925587809,1.98102,177.13,177.12,39.46]
[1752925587998,1.98102,177.13,177.12,0.71]
[1752925588197,1.98102,177.14,177.12,0.71]
[1752925588511,7.62628223,177.14,177.13,0.71]
[1752925589008,7.62628223,177.14,177.11,39.46]
[1752925589209,1.98102,177.13,177.11,40.17]
[1752925590113,1.98102,177.13,177.11,39.46]
[1752925590317,7.62659104,177.13,177.11,39.46]
[1752925590613,7.62659104,177.13,177.11,40.17]
[1752925590811,1.98102,177.12,177.11,40.17]
[1752925591021,2.24102,177.12,177.1,0.03]
[1752925591192,1.98102,177.11,177.1,0.03]
[1752925591395,2.24102,177.11,177.1,0.03]
[1752925592210,7.62722857,177.11,177.1,0.03]
[1752925592901,5.64620857,177.11,177.1,0.03]
[1752925593101,8.74432881,177.11,177.1,0.74]
[1752925593499,3.09812024,177.11,177.1,0.74]
[1752925593693,3.09812024,177.12,177.1,0.74]
[1752925593915,5.64557893,177.13,177.1,0.74]
[1752925594119,8.74369917,177.13,177.1,0.74]
[1752925594724,3.09812024,177.12,177.11,0.71]
[1752925595700,3.09812024,177.12,177.1,39.51]
[1752925595907,3.09812024,177.11,177.1,39.51]
[1752925596527,5.6460298,177.12,177.1,40.22]
[1752925596705,5.64493367,177.15,177.11,0.71]
[1752925596901,5.64493367,177.15,177.12,0.71]
[1752925596902,3.09812024,177.13,177.12,0.71]
[1752925597207,3.09812024,177.15,177.12,39.52]
[1752925597613,3.09812024,177.15,177.13,0.71]
[1752925598420,8.74313987,177.15,177.13,0.71]
[1752925598630,8.74313987,177.15,177.12,39.52]
[1752925598810,8.74313987,177.15,177.14,0.71]
[1752925600502,8.74313987,177.15,177.12,40.23]
[1752925600703,8.74313987,177.15,177.13,0.71]
[1752925605626,8.74313987,177.15,177.14,0.71]
[1752925606033,8.74313987,177.15,177.12,39.52]
[1752925606211,8.74313987,177.15,177.13,0.71]
[1752925607835,3.09812024,177.14,177.13,0.71]
[1752925608826,8.74337258,177.14,177.13,0.71]
[1752925609432,9.00337258,177.14,177.1,0.03]
[1752925609672,3.09812024,177.11,177.1,39.51]
[1752925611653,8.74432881,177.11,177.1,39.51]
[1752925611951,8.74432881,177.11,177.1,0.03]
[1752925614941,9.00432881,177.11,177.1,0.03]
[1752925615150,5.64557104,177.13,177.1,0.74]
[1752925615322,8.74369128,177.13,177.1,0.74]
[1752925615640,8.74369128,177.13,177.11,39.48]
[1752925616012,3.15812024,177.15,177.12,0.66]
[1752925616219,0.06,177.15,177.12,0.66]
[1752925616827,3.15812024,177.15,177.12,0.66]
[1752925617113,8.80310809,177.15,177.12,0.66]
[1752925618129,8.74337258,177.14,177.13,0.66]
[1752925618339,8.74337258,177.14,177.11,40.14]